[Event "Turkish Championship 2023"]
[Site "Kemer Antalya"]
[Date "2023.12.07"]
[Round "6"]
[White "Tirpan, Ceren"]
[Black "Gunduz, Umut Erdem"]
[Result "0-1"]
[ECO "C60"]
[WhiteElo "1940"]
[BlackElo "2318"]
[Annotator "RC"]
[PlyCount "78"]
[EventDate "2023.12.01"]
[EventType "tourn"]
[EventCountry "TUR"]
[SourceTitle "playchess.com"]
[Source "ChessBase"]
[SourceQuality "1"]
[TimeControl "40/5400+30:1800+30"]

1. e4 {[%emt 0:01:00]} e5 {[%emt 0:02:00]} 2. Nf3 {[%emt 0:00:00]} Nc6 {[%emt 0:04:30]} 3. Bb5 {[%emt 0:00:00]} Nge7 {[%emt 0:02:30]} 4. O-O {[%emt 0:07:30]} g6 {[%emt 0:00:30]} 5. d4 {[%emt 0:11:30]} exd4 {[%emt 0:01:30]} 6. Nxd4 {[%emt 0:01:30]} Bg7 {[%emt 0:00:00]} 7. Ne2 {[%emt 0:00:00]} a6 {[%emt 0:02:00]} 8. Bd3 {[%emt 0:05:00]} O-O {[%emt 0:01:30]} 9. Nbc3 {[%emt 0:00:30]} d6 {[%emt 0:05:30]} 10. Bf4 {[%emt 0:08:30]} Ne5 {[%emt 0:05:30]} 11. Qd2 {[%emt 0:04:30]} Nxd3 {[%emt 0:03:30]} 12. cxd3 {[%emt 0:00:30]} Re8 {[%emt 0:00:00]} 13. Bh6 {[%emt 0:08:30]} Bh8 {[%emt 0:00:00]} 14. Bg5 {[%emt 0:00:30]} f6 {[%emt 0:03:30]} 15. Bf4 {[%emt 0:00:30]} b5 {[%emt 0:00:30]} 16. d4 {[%emt 0:08:30]} Bb7 {[%emt 0:00:30]} 17. d5 {[%emt 0:01:30]} f5 {[%emt 0:05:30]} 18. f3 {[%emt 0:07:30]} fxe4 {[%emt 0:13:30]} 19. fxe4 {[%emt 0:00:30]} Nc8 {[%emt 0:00:00]} 20. Ng3 {[%emt 0:05:30]} Nb6 {[%emt 0:02:00]} 21. Rae1 {[%emt 0:03:30]} Nc4 {[%emt 0:00:30]} 22. Qc1 {[%emt 0:00:30]} Ne5 {[%emt 0:01:30]} 23. Qd2 {[%emt 0:03:30]} Nc4 {[%emt 0:01:30]} 24. Qc1 {[%emt 0:01:30]} Qd7 {[%emt 0:00:30]} 25. Nd1 {[%emt 0:00:35]} Ne5 {[%emt 0:02:30]} 26. Qd2 {[%emt 0:01:00]} Re7 {[%emt 0:03:30]} 27. Ne3 {[%emt 0:00:20]} Rf7 {[%emt 0:02:30]} 28. Qe2 {[%emt 0:07:18]} Raf8 {[%emt 0:01:30]} 29. Bh6 {[%emt 0:01:40]} Rxf1+ {[%emt 0:00:30]} 30. Rxf1 {[%emt 0:00:30]} Rxf1+ {[%emt 0:00:00]} 31. Ngxf1 {[%emt 0:00:10]} Nf7 {[%emt 0:01:00]} 32. Bf4 {[%emt 0:00:07]} Qe7 {[%emt 0:01:30]} 33. Qc2 {[%emt 0:03:28]} Bd4 {[%emt 0:00:30]} 34. Kh1 {[%emt 0:00:09]} Bc5 {[%emt 0:00:30]} 35. h3 {[%emt 0:03:07]} Qf6 {[%emt 0:02:30]} 36. Bg3 {[%emt 0:01:33]} Qd4 {[%emt 0:00:00]} 37. Bf2 {[%emt 0:00:19]} Ne5 {[%emt 0:07:00]} 38. Ng4 {[%emt 0:06:04]} Qd3 {[%emt 0:00:00]} 39. Nfe3 {[%emt 0:00:00]} Nxg4 {[%emt 0:02:00]} 0-1

[Event "Turkish Championship 2023"]
[Site "Kemer Antalya"]
[Date "2023.12.08"]
[Round "7"]
[White "Isik, Alparslan"]
[Black "Bicer, Atakan Mert"]
[Result "1-0"]
[ECO "D18"]
[WhiteElo "2452"]
[BlackElo "2318"]
[Annotator "RC"]
[PlyCount "99"]
[EventDate "2023.12.01"]
[EventType "tourn"]
[EventCountry "TUR"]
[SourceTitle "playchess.com"]
[Source "ChessBase"]
[SourceQuality "1"]
[TimeControl "40/5400+30:1800+30"]

1. d4 {[%emt 0:02:00]} d5 {[%emt 0:01:00]} 2. c4 {[%emt 0:00:30]} c6 {[%emt 0:00:00]} 3. Nf3 {[%emt 0:00:30]} Nf6 {[%emt 0:00:00]} 4. Nc3 {[%emt 0:00:00]} dxc4 {[%emt 0:00:00]} 5. a4 {[%emt 0:00:00]} Bf5 {[%emt 0:00:00]} 6. e3 {[%emt 0:00:30]} e6 {[%emt 0:02:30]} 7. Bxc4 {[%emt 0:00:30]} Bb4 {[%emt 0:00:30]} 8. O-O {[%emt 0:00:30]} O-O {[%emt 0:00:00]} 9. Nh4 {[%emt 0:00:00]} Nbd7 {[%emt 0:01:00]} 10. h3 {[%emt 0:00:00]} a5 {[%emt 0:05:30]} 11. Nxf5 {[%emt 0:00:30]} exf5 {[%emt 0:00:30]} 12. Qf3 {[%emt 0:00:00]} g6 {[%emt 0:01:30]} 13. g4 {[%emt 0:00:00]} fxg4 {[%emt 0:05:30]} 14. hxg4 {[%emt 0:00:30]} h5 {[%emt 0:00:30]} 15. gxh5 {[%emt 0:11:30]} Nxh5 {[%emt 0:00:30]} 16. e4 {[%emt 0:22:30]} Kg7 {[%emt 0:06:30]} 17. Bd3 {[%emt 0:23:30]} Bd6 {[%emt 0:30:30]} 18. Rd1 {[%emt 0:10:30]} c5 {[%emt 0:09:30]} 19. Bb5 {[%emt 0:05:30]} cxd4 {[%emt 0:15:25]} 20. Rxd4 {[%emt 0:00:30]} Ne5 {[%emt 0:01:03]} 21. Qg2 {[%emt 0:00:00]} Rh8 {[%emt 0:02:21]} 22. Be2 {[%emt 0:08:57]} Qf6 {[%emt 0:06:12]} 23. Rd5 {[%emt 0:00:03]} Be7 {[%emt 0:02:15]} 24. Rb5 {[%emt 0:03:28]} Rad8 {[%emt 0:06:11]} 25. Nd5 {[%emt 0:01:23]} Rxd5 {[%emt 0:01:18]} 26. Rxd5 {[%emt 0:00:24]} Nf4 {[%emt 0:00:11]} 27. Bxf4 {[%emt 0:00:55]} Qxf4 {[%emt 0:00:05]} 28. Qg3 {[%emt 0:00:31]} Qh6 {[%emt 0:00:09]} 29. Kg2 {[%emt 0:01:51]} Nc6 {[%emt 0:00:04]} 30. Rh5 {[%emt 0:00:31]} Qd2 {[%emt 0:01:30]} 31. Rxh8 {[%emt 0:00:11]} Kxh8 {[%emt 0:00:00]} 32. Qc3+ {[%emt 0:01:25]} Qxc3 {[%emt 0:00:36]} 33. bxc3 {[%emt 0:00:03]} Bc5 {[%emt 0:01:37]} 34. Rd1 {[%emt 0:00:46]} Kg7 {[%emt 0:00:09]} 35. f4 {[%emt 0:01:40]} b6 {[%emt 0:00:16]} 36. Bb5 {[%emt 0:02:10]} Ne7 {[%emt 0:00:06]} 37. Kf3 {[%emt 0:00:50]} g5 {[%emt 0:02:02]} 38. fxg5 {[%emt 0:01:07]} Ng6 {[%emt 0:00:05]} 39. Kg4 {[%emt 0:00:10]} Be3 {[%emt 0:00:08]} 40. Rd5 {[%emt 0:00:00]} Kf8 {[%emt 0:00:00]} 41. Bc4 {[%emt 0:07:05]} Kg7 {[%emt 0:01:47]} 42. Rf5 {[%emt 0:01:30]} Nh8 {[%emt 0:00:00]} 43. Kh5 {[%emt 0:01:30]} Bc5 {[%emt 0:00:00]} 44. e5 {[%emt 0:02:30]} Be7 {[%emt 0:00:30]} 45. Bb3 {[%emt 0:00:30]} Ba3 {[%emt 0:00:30]} 46. e6 {[%emt 0:00:30]} fxe6 {[%emt 0:00:30]} 47. Bxe6 {[%emt 0:00:30]} Bc5 {[%emt 0:00:30]} 48. Bb3 {[%emt 0:00:30]} Ba3 {[%emt 0:00:00]} 49. Rf6 {[%emt 0:00:30]} Bc5 {[%emt 0:01:00]} 50. Rc6 {[%emt 0:00:30]} 1-0

[Event "Turkish Championship 2023"]
[Site "Kemer Antalya"]
[Date "2023.12.08"]
[Round "7"]
[White "Tarhan, Adar"]
[Black "Eren, Ataberk"]
[Result "1-0"]
[ECO "C07"]
[WhiteElo "2434"]
[BlackElo "2429"]
[Annotator "RC"]
[PlyCount "167"]
[EventDate "2023.12.01"]
[EventType "tourn"]
[EventCountry "TUR"]
[SourceTitle "playchess.com"]
[Source "ChessBase"]
[SourceQuality "1"]
[TimeControl "40/5400+30:1800+30"]

1. e4 {[%emt 0:01:00]} e6 {[%emt 0:01:00]} 2. d4 {[%emt 0:00:00]} d5 {[%emt 0:00:00]} 3. Nd2 {[%emt 0:00:00]} c5 {[%emt 0:00:00]} 4. Ngf3 {[%emt 0:00:00]} cxd4 {[%emt 0:00:00]} 5. exd5 {[%emt 0:00:00]} Qxd5 {[%emt 0:01:00]} 6. Bc4 {[%emt 0:00:00]} Qd6 {[%emt 0:00:00]} 7. O-O {[%emt 0:00:00]} Nf6 {[%emt 0:00:00]} 8. Nb3 {[%emt 0:00:30]} Nc6 {[%emt 0:00:00]} 9. Nbxd4 {[%emt 0:02:30]} Nxd4 {[%emt 0:00:00]} 10. Nxd4 {[%emt 0:00:30]} Be7 {[%emt 0:00:00]} 11. Nb5 {[%emt 0:01:30]} Qc6 {[%emt 0:00:00]} 12. Qe2 {[%emt 0:00:30]} O-O {[%emt 0:02:30]} 13. Bf4 {[%emt 0:01:30]} a6 {[%emt 0:01:30]} 14. Nd4 {[%emt 0:00:00]} Qc5 {[%emt 0:00:30]} 15. Nb3 {[%emt 0:12:00]} Qc6 {[%emt 0:01:30]} 16. Nd4 {[%emt 0:15:30]} Qc5 {[%emt 0:00:30]} 17. Rad1 {[%emt 0:04:30]} b5 {[%emt 0:05:30]} 18. Bb3 {[%emt 0:01:30]} Bb7 {[%emt 0:05:30]} 19. Rfe1 {[%emt 0:03:30]} Rfe8 {[%emt 0:04:30]} 20. Qe5 {[%emt 0:05:30]} Rad8 {[%emt 0:05:30]} 21. c3 {[%emt 0:00:30]} Qxe5 {[%emt 0:07:30]} 22. Bxe5 {[%emt 0:00:30]} Bc5 {[%emt 0:09:30]} 23. h3 {[%emt 0:06:30]} Nd5 {[%emt 0:03:30]} 24. a4 {[%emt 0:03:30]} b4 {[%emt 0:01:30]} 25. c4 {[%emt 0:00:30]} Ne7 {[%emt 0:07:30]} 26. Bc2 {[%emt 0:02:30]} Ng6 {[%emt 0:10:30]} 27. Bxg6 {[%emt 0:02:30]} hxg6 {[%emt 0:00:00]} 28. Nb3 {[%emt 0:00:00]} Bf8 {[%emt 0:01:00]} 29. Na5 {[%emt 0:14:00]} Ba8 {[%emt 0:00:30]} 30. Rxd8 {[%emt 0:01:30]} Rxd8 {[%emt 0:00:00]} 31. Rc1 {[%emt 0:00:30]} Rc8 {[%emt 0:09:00]} 32. Bd4 {[%emt 0:01:30]} e5 {[%emt 0:04:30]} 33. Bb6 {[%emt 0:00:00]} Bc5 {[%emt 0:03:21]} 34. Bxc5 {[%emt 0:00:00]} Rxc5 {[%emt 0:00:30]} 35. Nb3 {[%emt 0:00:30]} Rc8 {[%emt 0:00:00]} 36. f3 {[%emt 0:02:30]} f5 {[%emt 0:08:06]} 37. Rd1 {[%emt 0:03:29]} e4 {[%emt 0:05:57]} 38. Kf2 {[%emt 0:00:30]} Kh7 {[%emt 0:04:01]} 39. Rd4 {[%emt 0:01:03]} exf3 {[%emt 0:03:05]} 40. gxf3 {[%emt 0:00:00]} Bc6 {[%emt 0:00:00]} 41. Na5 {[%emt 0:07:28]} Bxa4 {[%emt 0:06:30]} 42. b3 {[%emt 0:01:30]} Be8 {[%emt 0:01:30]} 43. Rd6 {[%emt 0:00:30]} f4 {[%emt 0:00:30]} 44. Rxa6 {[%emt 0:00:30]} Rd8 {[%emt 0:08:06]} 45. Ke2 {[%emt 0:00:00]} Bd7 {[%emt 0:00:11]} 46. h4 {[%emt 0:04:00]} Kh6 {[%emt 0:03:20]} 47. Nb7 {[%emt 0:01:30]} Re8+ {[%emt 0:00:30]} 48. Kf2 {[%emt 0:02:30]} Re3 {[%emt 0:03:33]} 49. Ra8 {[%emt 0:04:30]} g5 {[%emt 0:00:45]} 50. Rd8 {[%emt 0:01:30]} Bf5 {[%emt 0:02:37]} 51. Rh8+ {[%emt 0:02:30]} Kg6 {[%emt 0:00:36]} 52. h5+ {[%emt 0:00:00]} Kf6 {[%emt 0:01:01]} 53. Rf8+ {[%emt 0:01:00]} Ke5 {[%emt 0:00:10]} 54. Na5 {[%emt 0:01:30]} Bc2 {[%emt 0:02:27]} 55. Nc6+ {[%emt 0:04:30]} Kd6 {[%emt 0:00:48]} 56. Nd4 {[%emt 0:00:30]} Bb1 {[%emt 0:03:09]} 57. Rd8+ {[%emt 0:02:30]} Ke7 {[%emt 0:02:20]} 58. Rd5 {[%emt 0:00:00]} Kf6 {[%emt 0:00:18]} 59. c5 {[%emt 0:01:00]} Re5 {[%emt 0:00:40]} 60. Rd6+ {[%emt 0:00:46]} Kf7 {[%emt 0:00:01]} 61. c6 {[%emt 0:00:14]} Rc5 {[%emt 0:00:40]} 62. Rd7+ {[%emt 0:00:47]} Kf6 {[%emt 0:00:40]} 63. c7 {[%emt 0:00:31]} Ke5 {[%emt 0:01:34]} 64. Ke2 {[%emt 0:00:17]} g4 {[%emt 0:00:26]} 65. fxg4 {[%emt 0:00:28]} Be4 {[%emt 0:00:35]} 66. g5 {[%emt 0:00:52]} Bd5 {[%emt 0:00:29]} 67. h6 {[%emt 0:00:59]} gxh6 {[%emt 0:00:30]} 68. gxh6 {[%emt 0:00:00]} Be4 {[%emt 0:00:19]} 69. Kd2 {[%emt 0:00:54]} Rc3 {[%emt 0:00:33]} 70. Re7+ {[%emt 0:03:40]} Kxd4 {[%emt 0:00:13]} 71. Rxe4+ {[%emt 0:00:30]} Kxe4 {[%emt 0:00:30]} 72. h7 {[%emt 0:00:00]} Rxc7 {[%emt 0:00:18]} 73. h8=Q {[%emt 0:00:00]} Rd7+ {[%emt 0:00:29]} 74. Ke1 {[%emt 0:01:32]} Rd4 {[%emt 0:00:27]} 75. Qh7+ {[%emt 0:01:09]} Ke3 {[%emt 0:00:19]} 76. Qc2 {[%emt 0:00:34]} Re4 {[%emt 0:01:46]} 77. Qd2+ {[%emt 0:00:30]} Kf3+ {[%emt 0:00:00]} 78. Kf1 {[%emt 0:00:00]} Kg4 {[%emt 0:00:00]} 79. Qd7+ {[%emt 0:00:00]} Kg3 {[%emt 0:00:12]} 80. Qd3+ {[%emt 0:02:38]} Re3 {[%emt 0:00:03]} 81. Qg6+ {[%emt 0:00:00]} Kh4 {[%emt 0:01:01]} 82. Qd6 {[%emt 0:01:00]} Rf3+ {[%emt 0:01:20]} 83. Ke2 {[%emt 0:00:08]} Re3+ {[%emt 0:00:21]} 84. Kf2 {[%emt 0:00:04]} 1-0

[Event "Turkish Championship 2023"]
[Site "Kemer Antalya"]
[Date "2023.12.08"]
[Round "7"]
[White "Gunduz, Umut Erdem"]
[Black "Tuncer, Ufuk"]
[Result "1-0"]
[ECO "D76"]
[WhiteElo "2318"]
[BlackElo "2360"]
[Annotator "RC"]
[PlyCount "57"]
[EventDate "2023.12.01"]
[EventType "tourn"]
[EventCountry "TUR"]
[SourceTitle "playchess.com"]
[Source "ChessBase"]
[SourceQuality "1"]
[TimeControl "40/5400+30:1800+30"]

1. d4 {[%emt 0:01:00]} Nf6 {[%emt 0:08:00]} 2. c4 {[%emt 0:00:00]} g6 {[%emt 0:00:00]} 3. Nf3 {[%emt 0:00:00]} Bg7 {[%emt 0:00:00]} 4. g3 {[%emt 0:00:30]} O-O {[%emt 0:00:30]} 5. Bg2 {[%emt 0:00:00]} d5 {[%emt 0:00:00]} 6. cxd5 {[%emt 0:00:00]} Nxd5 {[%emt 0:00:00]} 7. O-O {[%emt 0:00:30]} Nb6 {[%emt 0:00:00]} 8. Nc3 {[%emt 0:00:30]} Nc6 {[%emt 0:00:00]} 9. e3 {[%emt 0:00:00]} a5 {[%emt 0:00:30]} 10. h3 {[%emt 0:11:00]} a4 {[%emt 0:02:30]} 11. d5 {[%emt 0:08:30]} Nb4 {[%emt 0:00:00]} 12. e4 {[%emt 0:01:30]} a3 {[%emt 0:08:00]} 13. Qb3 {[%emt 0:03:30]} Nd3 {[%emt 0:28:30]} 14. bxa3 {[%emt 0:09:30]} Nc5 {[%emt 0:00:00]} 15. Qc2 {[%emt 0:02:30]} Nca4 {[%emt 0:00:00]} 16. Bd2 {[%emt 0:03:30]} e6 {[%emt 0:16:30]} 17. Nxa4 {[%emt 0:04:30]} Rxa4 {[%emt 0:00:30]} 18. Bg5 {[%emt 0:00:30]} Qd7 {[%emt 0:00:30]} 19. dxe6 {[%emt 0:05:30]} Qxe6 {[%emt 0:00:30]} 20. e5 {[%emt 0:00:00]} Rc4 {[%emt 0:02:30]} 21. Qd2 {[%emt 0:06:00]} Qc6 {[%emt 0:04:30]} 22. Rac1 {[%emt 0:06:30]} Bxh3 {[%emt 0:02:30]} 23. Bxh3 {[%emt 0:00:30]} Qxf3 {[%emt 0:00:00]} 24. e6 {[%emt 0:00:00]} Rxc1 {[%emt 0:10:03]} 25. Rxc1 {[%emt 0:00:00]} fxe6 {[%emt 0:10:37]} 26. Bxe6+ {[%emt 0:00:30]} Kh8 {[%emt 0:00:00]} 27. Rxc7 {[%emt 0:00:00]} Qe4 {[%emt 0:00:46]} 28. Rxg7 {[%emt 0:00:00]} Qxe6 {[%emt 0:00:36]} 29. Re7 {[%emt 0:00:30]} 1-0

[Event "Turkish Championship 2023"]
[Site "Kemer Antalya"]
[Date "2023.12.08"]
[Round "7"]
[White "Taspinar, Yanki"]
[Black "Tirpan, Ceren"]
[Result "1-0"]
[ECO "B40"]
[WhiteElo "2318"]
[BlackElo "1940"]
[Annotator "RC"]
[PlyCount "149"]
[EventDate "2023.12.01"]
[EventType "tourn"]
[EventCountry "TUR"]
[SourceTitle "playchess.com"]
[Source "ChessBase"]
[SourceQuality "1"]
[TimeControl "40/5400+30:1800+30"]

1. e4 {[%emt 0:01:00]} c5 {[%emt 0:01:00]} 2. Nf3 {[%emt 0:00:00]} e6 {[%emt 0:00:00]} 3. b3 {[%emt 0:00:00]} Nc6 {[%emt 0:02:00]} 4. Bb2 {[%emt 0:01:30]} d5 {[%emt 0:04:30]} 5. exd5 {[%emt 0:01:30]} exd5 {[%emt 0:00:30]} 6. Bb5 {[%emt 0:02:30]} Nf6 {[%emt 0:04:30]} 7. O-O {[%emt 0:13:30]} Be7 {[%emt 0:01:30]} 8. d4 {[%emt 0:14:30]} O-O {[%emt 0:05:30]} 9. h3 {[%emt 0:00:30]} Bf5 {[%emt 0:03:30]} 10. Nc3 {[%emt 0:07:30]} Nb4 {[%emt 0:06:30]} 11. dxc5 {[%emt 0:06:30]} a6 {[%emt 0:12:30]} 12. Nd4 {[%emt 0:11:30]} Bg6 {[%emt 0:28:30]} 13. a3 {[%emt 0:04:30]} Nxc2 {[%emt 0:01:30]} 14. Nxc2 {[%emt 0:00:30]} axb5 {[%emt 0:00:00]} 15. b4 {[%emt 0:01:30]} Qd7 {[%emt 0:00:00]} 16. Nd4 {[%emt 0:02:30]} Ra6 {[%emt 0:03:30]} 17. Qe2 {[%emt 0:12:02]} Rd8 {[%emt 0:04:38]} 18. Qxb5 {[%emt 0:02:12]} Qc8 {[%emt 0:00:07]} 19. Rac1 {[%emt 0:06:48]} Qa8 {[%emt 0:10:12]} 20. Rfe1 {[%emt 0:06:17]} Bf8 {[%emt 0:00:07]} 21. a4 {[%emt 0:01:51]} Nh5 {[%emt 0:01:20]} 22. Re3 {[%emt 0:01:03]} h6 {[%emt 0:01:38]} 23. Rce1 {[%emt 0:00:42]} Nf6 {[%emt 0:00:06]} 24. a5 {[%emt 0:00:33]} Qc8 {[%emt 0:02:39]} 25. Qe2 {[%emt 0:00:58]} Ne4 {[%emt 0:02:07]} 26. f3 {[%emt 0:00:45]} Ng3 {[%emt 0:00:21]} 27. Qd2 {[%emt 0:00:38]} Nf5 {[%emt 0:00:25]} 28. Re5 {[%emt 0:00:23]} Nxd4 {[%emt 0:02:03]} 29. Qxd4 {[%emt 0:00:04]} Rxa5 {[%emt 0:00:00]} 30. Kh1 {[%emt 0:00:53]} Ra8 {[%emt 0:00:28]} 31. Rxd5 {[%emt 0:00:26]} Bf5 {[%emt 0:01:27]} 32. Rd1 {[%emt 0:01:09]} Rxd5 {[%emt 0:00:11]} 33. Nxd5 {[%emt 0:00:00]} Qd8 {[%emt 0:01:50]} 34. Qf4 {[%emt 0:00:41]} Qg5 {[%emt 0:00:43]} 35. Qxg5 {[%emt 0:00:28]} hxg5 {[%emt 0:00:07]} 36. Rc1 {[%emt 0:00:34]} Rd8 {[%emt 0:01:28]} 37. Ne3 {[%emt 0:00:30]} Be6 {[%emt 0:00:24]} 38. Nf1 {[%emt 0:00:31]} Rd3 {[%emt 0:00:13]} 39. Bc3 {[%emt 0:00:09]} f5 {[%emt 0:00:55]} 40. Kg1 {[%emt 0:00:00]} g4 {[%emt 0:00:00]} 41. hxg4 {[%emt 0:05:53]} fxg4 {[%emt 0:01:01]} 42. Nh2 {[%emt 0:05:30]} Be7 {[%emt 0:06:30]} 43. Nxg4 {[%emt 0:14:30]} Bg5 {[%emt 0:02:30]} 44. Nf2 {[%emt 0:01:11]} Be3 {[%emt 0:12:11]} 45. Be1 {[%emt 0:00:50]} Rb3 {[%emt 0:00:35]} 46. Rc3 {[%emt 0:02:25]} Bxf2+ {[%emt 0:00:34]} 47. Kxf2 {[%emt 0:00:02]} Rxb4 {[%emt 0:00:00]} 48. Re3 {[%emt 0:01:35]} Rb2+ {[%emt 0:00:22]} 49. Kg3 {[%emt 0:00:00]} Kf7 {[%emt 0:00:00]} 50. Bf2 {[%emt 0:00:10]} Rc2 {[%emt 0:00:58]} 51. Rd3 {[%emt 0:00:32]} Rc4 {[%emt 0:01:27]} 52. Rd6 {[%emt 0:00:17]} Ke7 {[%emt 0:01:05]} 53. Be3 {[%emt 0:00:34]} Kf7 {[%emt 0:06:16]} 54. Rd8 {[%emt 0:02:36]} Ke7 {[%emt 0:00:27]} 55. Rd2 {[%emt 0:00:29]} Kf7 {[%emt 0:01:25]} 56. Kf2 {[%emt 0:00:55]} Bf5 {[%emt 0:00:45]} 57. g4 {[%emt 0:00:16]} Be6 {[%emt 0:00:56]} 58. Rd6 {[%emt 0:00:58]} Ke7 {[%emt 0:01:00]} 59. Kg3 {[%emt 0:01:15]} Kf7 {[%emt 0:02:05]} 60. Bd4 {[%emt 0:00:11]} Ke7 {[%emt 0:00:31]} 61. Bf2 {[%emt 0:01:06]} Bd7 {[%emt 0:00:11]} 62. Bd4 {[%emt 0:00:18]} Be6 {[%emt 0:00:58]} 63. Bxg7 {[%emt 0:01:08]} Rxc5 {[%emt 0:00:05]} 64. Bf8+ {[%emt 0:00:00]} Kxf8 {[%emt 0:00:46]} 65. Rxe6 {[%emt 0:00:00]} Rb5 {[%emt 0:00:00]} 66. f4 {[%emt 0:00:10]} Kf7 {[%emt 0:01:13]} 67. f5 {[%emt 0:00:03]} Rb1 {[%emt 0:00:01]} 68. Kf4 {[%emt 0:00:40]} b5 {[%emt 0:00:07]} 69. Rb6 {[%emt 0:00:00]} b4 {[%emt 0:00:04]} 70. Rb7+ {[%emt 0:00:04]} Ke8 {[%emt 0:00:18]} 71. Kg5 {[%emt 0:00:42]} b3 {[%emt 0:00:07]} 72. f6 {[%emt 0:00:49]} Kf8 {[%emt 0:01:33]} 73. Kg6 {[%emt 0:00:06]} Re1 {[%emt 0:00:00]} 74. Rxb3 {[%emt 0:00:13]} Re8 {[%emt 0:00:25]} 75. Rh3 {[%emt 0:00:11]} 1-0

[Event "Turkish Championship 2023"]
[Site "Kemer Antalya"]
[Date "2023.12.08"]
[Round "7"]
[White "Metin, Enis"]
[Black "Yilmazyerli, Mert"]
[Result "0-1"]
[ECO "B07"]
[WhiteElo "2031"]
[BlackElo "2524"]
[Annotator "RC"]
[PlyCount "62"]
[EventDate "2023.12.01"]
[EventType "tourn"]
[EventCountry "TUR"]
[SourceTitle "playchess.com"]
[Source "ChessBase"]
[SourceQuality "1"]
[TimeControl "40/5400+30:1800+30"]

1. e4 {[%emt 0:00:00]} g6 {[%emt 0:05:00]} 2. d4 {[%emt 0:00:30]} Bg7 {[%emt 0:00:30]} 3. Nc3 {[%emt 0:00:30]} d6 {[%emt 0:00:30]} 4. Bc4 {[%emt 0:00:00]} Nf6 {[%emt 0:00:30]} 5. Qe2 {[%emt 0:00:00]} Nc6 {[%emt 0:01:30]} 6. e5 {[%emt 0:00:30]} Ng4 {[%emt 0:00:30]} 7. Bb5 {[%emt 0:00:30]} O-O {[%emt 0:00:30]} 8. Bxc6 {[%emt 0:00:30]} bxc6 {[%emt 0:00:00]} 9. h3 {[%emt 0:00:00]} Nh6 {[%emt 0:00:00]} 10. Bf4 {[%emt 0:07:00]} c5 {[%emt 0:10:30]} 11. dxc5 {[%emt 0:03:30]} Bb7 {[%emt 0:00:30]} 12. Nf3 {[%emt 0:13:30]} Qc8 {[%emt 0:10:30]} 13. O-O-O {[%emt 0:04:30]} Rb8 {[%emt 0:00:30]} 14. Rhe1 {[%emt 0:02:30]} dxc5 {[%emt 0:03:30]} 15. Ne4 {[%emt 0:14:30]} Bxe4 {[%emt 0:09:30]} 16. Qxe4 {[%emt 0:00:00]} Rb4 {[%emt 0:00:00]} 17. Qe3 {[%emt 0:02:00]} Nf5 {[%emt 0:00:00]} 18. Qd2 {[%emt 0:00:30]} Qa6 {[%emt 0:06:30]} 19. a3 {[%emt 0:00:30]} Rfb8 {[%emt 0:04:30]} 20. c3 {[%emt 0:02:30]} Ra4 {[%emt 0:07:30]} 21. g4 {[%emt 0:01:30]} Rxa3 {[%emt 0:00:00]} 22. Qd8+ {[%emt 0:00:00]} Rxd8 {[%emt 0:01:00]} 23. Rxd8+ {[%emt 0:00:00]} Bf8 {[%emt 0:00:00]} 24. bxa3 {[%emt 0:09:30]} Qxa3+ {[%emt 0:00:00]} 25. Kd2 {[%emt 0:00:30]} Qb2+ {[%emt 0:05:30]} 26. Kd3 {[%emt 0:00:00]} Qxf2 {[%emt 0:00:30]} 27. Re3 {[%emt 0:03:00]} c4+ {[%emt 0:03:30]} 28. Ke4 {[%emt 0:04:30]} Qc2+ {[%emt 0:00:30]} 29. Kd5 {[%emt 0:00:00]} Nxe3+ {[%emt 0:00:00]} 30. Kc5 {[%emt 0:00:00]} Qf2 {[%emt 0:00:00]} 31. Kb5 {[%emt 0:00:30]} Kg7 {[%emt 0:00:30]} 0-1

[Event "Turkish Championship 2023"]
[Site "Kemer Antalya"]
[Date "2023.12.09"]
[Round "8"]
[White "Yilmazyerli, Mert"]
[Black "Gunduz, Umut Erdem"]
[Result "1-0"]
[ECO "D37"]
[WhiteElo "2524"]
[BlackElo "2318"]
[Annotator "RC"]
[PlyCount "59"]
[EventDate "2023.12.01"]
[EventType "tourn"]
[EventCountry "TUR"]
[SourceTitle "playchess.com"]
[Source "ChessBase"]
[SourceQuality "1"]
[TimeControl "40/5400+30:1800+30"]

1. d4 {[%emt 0:01:00]} d5 {[%emt 0:01:00]} 2. c4 e6 {[%emt 0:00:30]} 3. Nf3 {[%emt 0:02:00]} a6 {[%emt 0:00:30]} 4. cxd5 {[%emt 0:01:30]} exd5 {[%emt 0:00:30]} 5. Nc3 {[%emt 0:00:00]} Nf6 {[%emt 0:00:00]} 6. Qb3 {[%emt 0:02:00]} c5 {[%emt 0:07:00]} 7. Bg5 {[%emt 0:00:30]} c4 {[%emt 0:00:30]} 8. Qc2 {[%emt 0:00:30]} Bb4 {[%emt 0:04:30]} 9. e4 {[%emt 0:02:30]} dxe4 {[%emt 0:03:30]} 10. Bxf6 {[%emt 0:01:30]} Qxf6 {[%emt 0:00:30]} 11. Qxe4+ {[%emt 0:00:00]} Qe6 {[%emt 0:00:00]} 12. Ne5 {[%emt 0:00:00]} f6 {[%emt 0:08:00]} 13. Bxc4 {[%emt 0:00:30]} Bxc3+ {[%emt 0:01:30]} 14. bxc3 {[%emt 0:00:30]} Qe7 {[%emt 0:00:00]} 15. O-O {[%emt 0:02:30]} fxe5 {[%emt 0:02:00]} 16. f4 {[%emt 0:02:30]} Nc6 {[%emt 0:13:30]} 17. fxe5 {[%emt 0:03:30]} Nd8 {[%emt 0:01:30]} 18. e6 {[%emt 0:09:30]} Bxe6 {[%emt 0:02:30]} 19. Rae1 {[%emt 0:03:30]} Kd7 {[%emt 0:01:30]} 20. d5 {[%emt 0:01:30]} Qc5+ {[%emt 0:00:00]} 21. Kh1 {[%emt 0:00:30]} Bf7 {[%emt 0:02:00]} 22. Qg4+ {[%emt 0:01:30]} Kd6 {[%emt 0:06:30]} 23. Qg3+ {[%emt 0:03:30]} Kd7 {[%emt 0:00:30]} 24. d6 {[%emt 0:00:30]} Re8 {[%emt 0:13:30]} 25. Bxf7 {[%emt 0:00:30]} Rxe1 {[%emt 0:00:30]} 26. Rxe1 {[%emt 0:00:00]} Kc8 {[%emt 0:02:30]} 27. Re8 {[%emt 0:02:00]} Qb6 {[%emt 0:00:00]} 28. h3 {[%emt 0:00:30]} Kb8 {[%emt 0:00:00]} 29. Bd5 {[%emt 0:02:30]} Ka7 {[%emt 0:00:30]} 30. Qxg7 {[%emt 0:00:00]} 1-0